bitfinex/quotes_ETHUSD_20251126
["timestamp","ask_amount","ask_price","bid_price","bid_amount"]
[1764170484750,23.40594055,2929.0,2928.9,0.001]
[1764170484949,22.84662881,2929.0,2928.9,0.001]
[1764170485151,23.04052881,2929.0,2928.9,0.001]
[1764170485465,38.02921355,2929.0,2928.9,0.001]
[1764170485618,39.56118651,2929.0,2928.9,0.001]
[1764170485816,38.34860181,2929.0,2928.9,0.001]
[1764170486060,39.56118651,2929.0,2928.9,0.001]
[1764170486357,31.13109811,2928.9,2928.6,0.001]
[1764170486657,0.405504,2928.5,2928.3,0.001]
[1764170486831,30.69577534,2928.4,2927.0,0.001]
[1764170487036,30.0,2927.7,2927.0,0.001]
[1764170487259,0.72559411,2927.4,2927.0,0.001]
[1764170487457,0.53560223,2927.6,2927.1,0.4648]
[1764170487458,0.31560223,2927.3,2927.1,0.4648]
[1764170487751,0.53560223,2927.2,2927.1,0.4648]
[1764170487930,0.53560223,2927.2,2927.1,3.88115065]
[1764170488135,0.53560223,2927.2,2927.0,0.001]
[1764170488326,1.04193854,2927.1,2927.0,0.001]
[1764170488524,28.27080095,2927.1,2927.0,0.001]
[1764170488764,29.14190495,2927.1,2927.0,0.001]
[1764170489585,33.5442771,2927.1,2927.0,0.001]
[1764170489856,0.405504,2926.4,2925.5,0.1939]
[1764170490061,0.72559411,2926.0,2925.5,0.1939]
[1764170490365,0.3161632,2925.9,2925.5,0.6587]
[1764170490657,0.5361632,2925.8,2925.5,0.6587]
[1764170490855,0.22,2925.8,2925.6,0.4648]
[1764170491036,0.22,2925.8,2925.7,0.4899]
[1764170491257,0.31559374,2926.4,2925.7,0.4899]
[1764170491463,0.72559411,2926.1,2925.7,0.4899]
[1764170491673,0.53559374,2926.0,2925.9,3.4177518]
[1764170491847,0.72559411,2927.0,2926.1,0.4899]
[1764170492068,0.72559411,2926.6,2926.2,0.6587]
[1764170492398,7.60204,2926.4,2926.2,0.4648]
[1764170492545,5.472382,2927.3,2926.3,0.4648]
[1764170492745,4.538243,2927.1,2926.3,0.4648]
[1764170492980,0.22,2927.0,2926.3,0.56385906]
[1764170493283,21.571464,2927.7,2927.1,0.4899]
[1764170493483,7.130241,2927.4,2927.1,0.4899]
[1764170493785,0.4694,2928.1,2927.1,0.4899]
[1764170493786,9.29196154,2928.3,2927.2,3.61013394]
[1764170493987,0.31523986,2928.2,2927.9,0.4899]
[1764170494285,0.53523986,2928.1,2928.0,0.1939]
[1764170494488,0.31523986,2928.1,2928.0,0.1939]
[1764170494783,0.72673712,2928.9,2928.0,1.1486]
[1764170494982,4.048547,2928.7,2928.0,1.1486]
[1764170495182,0.31541654,2928.6,2928.1,0.4648]
[1764170495357,0.31541654,2928.5,2928.1,0.4648]
[1764170495562,0.31541654,2928.5,2928.4,0.4899]
[1764170495768,0.31541654,2928.5,2928.4,3.90473403]
[1764170495973,0.31541654,2928.5,2928.1,3.4151839]
[1764170496174,0.31541654,2928.5,2928.2,0.4648]
[1764170497190,0.31541654,2928.5,2928.0,3.609152]
[1764170497484,0.31541654,2928.5,2928.1,0.4648]
[1764170497672,0.31541654,2928.5,2928.0,0.1939]
[1764170497862,0.31541654,2928.5,2928.4,0.4899]
[1764170498060,0.72559411,2928.4,2928.0,0.6587]
[1764170498260,0.31541654,2928.3,2928.1,0.4648]
[1764170498462,0.72559411,2928.4,2928.1,0.4648]
[1764170498661,0.31581991,2928.3,2928.1,0.4648]
[1764170498863,3.784923,2928.5,2928.1,0.4648]
[1764170499092,0.31584061,2928.4,2928.1,0.4648]
[1764170499387,0.31584061,2928.3,2928.1,0.4648]
[1764170499585,0.31584061,2928.2,2928.1,0.4648]
[1764170499785,2.628411,2929.0,2928.5,0.4899]
[1764170499989,4.77047,2928.8,2928.5,0.4899]
[1764170500285,1.59692601,2928.9,2928.5,0.4899]
[1764170500286,3.25759411,2928.6,2928.5,0.4899]
[1764170500455,0.72559411,2928.4,2928.1,3.87994814]
[1764170500787,0.53593139,2928.3,2928.2,0.4648]
[1764170501157,0.53593139,2928.3,2928.2,0.9547]
[1764170501686,0.53593139,2928.3,2928.2,4.36976727]
[1764170501892,0.31593139,2928.3,2928.2,4.36976727]
[1764170502186,0.22,2928.3,2928.2,4.36976727]
[1764170502482,0.53593139,2928.3,2928.2,4.36976727]
[1764170502888,0.53593139,2928.3,2928.2,0.4899]
[1764170503185,0.53593139,2928.3,2928.2,3.90496727]
[1764170503351,0.53593139,2928.3,2928.2,4.36976727]
[1764170504292,0.53593139,2928.3,2928.2,0.4899]
[1764170504487,0.53593139,2928.3,2928.2,4.38276727]
[1764170505061,0.53593139,2928.3,2928.2,0.4899]
[1764170505392,0.53593139,2928.3,2928.2,4.38276727]
[1764170505565,0.72559411,2928.7,2928.2,11.21290181]
[1764170505770,0.72559411,2928.7,2928.6,0.4577]
[1764170505969,1.04214567,2928.7,2928.6,3.87230083]
[1764170506171,1.04214567,2928.7,2928.6,4.35010083]
[1764170506480,1.04214567,2928.7,2928.0,0.6717]
[1764170506680,0.31655156,2928.6,2928.0,7.50227318]
[1764170507000,0.31655156,2928.5,2928.1,0.4778]
[1764170507287,0.53655156,2928.4,2928.1,0.4778]
[1764170507487,0.31655156,2928.3,2928.2,0.405504]
[1764170507787,6.542,2928.8,2928.7,0.4577]
[1764170508085,6.8584721,2928.8,2928.7,3.87218424]
[1764170508392,6.8584721,2928.8,2928.7,4.34998424]
[1764170508775,6.8584721,2928.8,2928.7,0.9355]
[1764170509168,6.8584721,2928.8,2928.7,4.34998424]
[1764170510314,6.6384721,2928.8,2928.7,4.34998424]
[1764170510523,6.322,2928.8,2928.7,4.34998424]
[1764170511003,0.002,2928.8,2928.7,4.34998424]
[1764170512100,0.002,2928.8,2928.7,4.8545473]
[1764170512301,0.002,2929.1,2929.0,0.405504]
[1764170512497,0.002,2929.1,2929.0,1.44006306]
[1764170512687,0.002,2929.1,2929.0,1.341004]
[1764170514221,0.002,2929.1,2929.0,4.34963451]
[1764170515589,0.002,2929.1,2928.6,3.82002979]
[1764170515590,0.002,2929.1,2928.6,0.4778]
[1764170515805,0.002,2929.1,2928.7,3.41448424]
[1764170516002,0.002,2929.1,2929.0,0.9355]
[1764170516289,0.002,2929.1,2929.0,3.87183451]
[1764170516512,6.322,2929.1,2929.0,4.34963451]
[1764170517026,6.3212,2929.1,2929.0,4.34963451]
[1764170518198,6.8095,2929.1,2928.4,0.4778]
[1764170518404,6.97552,2929.1,2928.4,0.4778]
[1764170519347,6.3212,2929.1,2929.0,0.4577]
[1764170519509,6.5412,2929.1,2929.0,0.4577]
[1764170519917,6.5412,2929.1,2928.8,0.4778]
[1764170520538,6.3212,2929.1,2929.0,0.4577]
[1764170520736,6.3212,2929.1,2928.8,6.82870179]
[1764170520950,6.3212,2929.1,2928.9,0.4778]
[1764170521104,6.3212,2929.1,2929.0,0.4577]
[1764170521306,0.0012,2929.1,2929.0,0.863204]
[1764170521533,0.0012,2929.1,2929.0,1.341004]
[1764170522241,0.002,2930.9,2929.5,0.4577]
[1764170522440,0.002,2930.9,2930.2,1.23015717]
[1764170522648,0.002,2930.9,2930.5,0.863204]
[1764170522851,0.002,2930.9,2930.5,0.4577]
[1764170523051,0.002,2930.9,2930.5,0.9355]
[1764170523209,0.002,2930.9,2930.1,0.1874]
[1764170523210,0.31666653,2930.8,2930.1,0.6652]
[1764170523414,0.31666653,2930.7,2930.1,0.6652]
[1764170523758,0.53666653,2930.5,2929.8,3.41315075]
[1764170523950,0.31666653,2930.4,2929.8,6.82635301]
[1764170524162,0.31666653,2930.3,2929.8,6.82635301]
[1764170524326,0.002,2930.6,2930.2,0.6451]
[1764170524645,0.002,2930.6,2930.5,0.4577]
[1764170524811,0.002,2930.6,2930.5,0.9355]
[1764170526460,0.002,2930.6,2930.0,6.82593856]
[1764170526637,0.002,2930.6,2930.0,3.41296928]
[1764170527331,0.31825185,2930.6,2929.9,0.1809]
[1764170527532,0.4896,2930.5,2929.5,0.1809]
[1764170527838,1.24903704,2930.4,2929.5,0.1809]
[1764170528037,0.31650179,2930.3,2929.3,6.82756972]
[1764170528349,4.21879776,2930.3,2929.3,6.82756972]
[1764170528667,0.31650179,2930.2,2929.3,6.82756972]
[1764170528870,3.72923812,2930.2,2929.2,3.60123479]
[1764170529038,3.72923812,2930.2,2929.2,7.01513619]
[1764170529039,0.31650179,2930.1,2929.2,7.01513619]
[1764170529241,0.80610179,2930.1,2929.2,3.60123479]
[1764170529557,0.31650179,2930.0,2929.3,0.4638]
[1764170529868,0.22,2929.9,2929.3,0.4638]
[1764170530474,0.22,2929.9,2929.4,6.82733664]
[1764170530783,0.22,2929.9,2929.4,10.24100496]
[1764170531071,0.22,2929.9,2929.5,0.4638]
[1764170532270,0.72559411,2930.2,2929.5,0.4638]
[1764170532600,0.31656937,2930.1,2929.6,3.41343528]
[1764170532766,0.31656937,2930.0,2929.6,3.41343528]
[1764170532971,0.31656937,2929.9,2929.6,3.41343528]
[1764170533294,0.22,2930.3,2929.7,0.4638]
[1764170533460,0.31670811,2930.2,2929.7,0.4638]
[1764170533802,0.31670811,2930.2,2929.7,0.72559411]
[1764170534385,0.31670811,2930.1,2929.7,0.72559411]
[1764170534573,0.31670811,2930.0,2929.8,3.41320226]
[1764170534774,0.22,2930.3,2929.8,7.30540452]
[1764170534977,0.31688872,2930.2,2929.9,0.9498]
[1764170535183,0.002,2930.6,2930.1,0.4708]
[1764170535397,0.31706751,2930.5,2930.1,0.4708]
[1764170535605,0.31706751,2930.5,2930.2,0.479]
[1764170536398,0.002,2930.6,2930.4,0.4708]
[1764170536587,0.002,2930.6,2930.5,3.88318696]
[1764170536792,0.002,2930.6,2930.2,0.72559411]
[1764170537501,0.31905098,2930.6,2930.3,0.479]
[1764170537802,0.31905098,2930.6,2930.5,0.4708]
[1764170537803,0.002,2930.6,2930.5,0.4708]
[1764170538180,0.002,2930.6,2930.5,0.9498]
[1764170538377,0.31905649,2930.6,2930.5,0.9498]
[1764170538577,0.002,2930.6,2930.5,4.36218696]
[1764170538793,0.002,2930.6,2930.5,0.4708]
[1764170538971,0.002,2930.6,2930.4,6.8249639]
[1764170539169,0.002,2930.6,2930.4,3.41246049]
[1764170539370,0.002,2930.6,2930.4,6.8249639]
[1764170539674,0.002,2930.6,2930.4,3.41246049]
[1764170540305,0.002,2930.6,2930.4,7.3039639]
[1764170540484,0.3188693,2930.6,2930.4,7.3039639]
[1764170540686,0.002,2930.6,2930.4,6.8249639]
[1764170541084,0.002,2930.6,2930.1,0.001]
[1764170541290,0.31908602,2930.6,2930.2,6.82546518]
[1764170541490,0.0012,2930.6,2930.2,6.82546518]
[1764170541920,0.31839218,2930.6,2930.3,0.479]
[1764170542217,0.0012,2930.6,2930.3,0.479]
[1764170542420,0.0012,2930.6,2930.2,6.82546518]
[1764170542616,0.31838043,2930.6,2930.2,6.82546518]
[1764170542919,0.0012,2930.6,2930.1,0.001]
[1764170543218,0.0012,2930.6,2930.2,0.479]
[1764170543712,0.31818703,2930.6,2930.2,0.479]
[1764170543910,0.0012,2930.6,2930.5,0.4708]
[1764170544089,0.0012,2930.6,2930.2,0.479]
[1764170544291,0.0012,2930.6,2930.5,0.4708]
[1764170544595,0.0012,2930.6,2930.5,0.9498]
[1764170544782,0.0012,2930.6,2930.5,4.36218696]
[1764170545430,0.0012,2930.6,2930.5,4.76769096]
[1764170545592,0.0012,2930.6,2930.5,13.75259579]
[1764170545795,0.002,2930.9,2930.6,0.405504]
[1764170546022,0.002,2930.9,2930.8,0.97536306]
[1764170546197,0.002,2930.9,2930.8,1.45436306]
[1764170546616,0.002,2930.9,2930.8,1.67436306]
[1764170546820,0.002,2930.9,2930.8,4.76734166]
[1764170548058,0.002,2930.9,2930.8,3.41203766]
[1764170548256,0.002,2930.9,2930.8,4.36183766]
[1764170549170,0.002,2930.9,2930.8,4.76734166]
[1764170549388,0.002,2930.9,2930.8,4.98734166]
[1764170550036,0.002,2930.9,2930.8,4.36183766]
[1764170550264,0.002,2930.9,2930.8,3.41203766]
[1764170550471,0.4552,2930.9,2930.4,3.41246737]
[1764170550635,0.4552,2930.9,2929.9,0.001]
[1764170550636,0.2684,2930.5,2929.9,0.001]
[1764170550835,0.2684,2930.2,2929.9,0.001]
[1764170551084,0.58533876,2930.2,2929.9,0.001]
[1764170552184,0.31693876,2930.2,2929.9,0.001]
[1764170552984,18.3432952,2930.2,2929.9,0.001]
[1764170553278,1.77463287,2930.2,2929.9,0.001]
[1764170553476,3.89333387,2930.2,2929.9,0.001]
[1764170553782,5.01320952,2930.2,2929.9,0.001]
[1764170553984,1.92026626,2930.2,2929.9,0.001]
[1764170554155,1.26253287,2930.2,2929.9,0.001]
[1764170554872,1.52893287,2930.2,2929.9,0.001]
[1764170555182,1.26253287,2930.2,2929.9,0.001]
[1764170556184,1.31093287,2930.2,2929.9,0.001]
[1764170556389,1.04253287,2930.2,2929.9,0.001]
[1764170557085,1.31283287,2930.2,2929.9,0.001]
[1764170557247,9.4625392,2930.2,2929.9,0.001]
[1764170557585,10.40879312,2930.2,2929.9,0.001]
[1764170557780,10.40879312,2930.2,2930.0,0.001]
[1764170558285,16.72879312,2930.2,2930.0,0.001]
[1764170559290,12.42600679,2930.2,2930.0,0.001]
[1764170559591,12.02965979,2930.2,2930.0,0.001]
[1764170559906,15.44239612,2930.2,2930.0,0.001]
[1764170560113,12.02965979,2930.2,2930.0,0.001]
[1764170560271,7.36253287,2930.2,2930.0,0.001]
[1764170560470,7.58253287,2930.2,2930.0,0.001]
[1764170561971,6.85693876,2930.2,2930.1,0.9508]
[1764170562271,0.002,2930.9,2930.5,0.4708]
[1764170562472,0.31913449,2931.2,2931.1,0.405504]
[1764170562804,0.002,2931.2,2931.1,1.29956306]
[1764170563011,0.002,2931.2,2931.1,1.98107878]
[1764170563192,0.002,2931.3,2931.2,3.91613511]
[1764170563193,1e-08,2931.3,2931.2,3.91613511]
[1764170563372,1e-08,2931.3,2931.2,5.81152922]
[1764170563894,1e-08,2931.3,2931.2,5.08696616]
[1764170564084,1e-08,2931.3,2931.2,5.71247016]
[1764170565201,1e-08,2931.3,2931.2,5.81152922]
[1764170565405,1e-08,2931.3,2931.2,5.59152922]
[1764170565612,1e-08,2931.3,2931.2,3.88237205]
[1764170566320,0.3321,2931.5,2929.5,0.001]
[1764170566531,0.72559411,2931.4,2930.2,0.4772]
[1764170566728,3.119396,2931.5,2930.2,0.4772]
[1764170566729,0.4914,2931.5,2930.2,0.4772]
[1764170566902,4.84021,2931.4,2930.1,3.41384263]
[1764170567102,4.074234,2931.1,2930.1,6.82669543]
[1764170567429,0.484021,2931.3,2930.1,0.001]
[1764170567430,0.72559411,2930.7,2930.1,0.001]
[1764170567732,0.191,2930.2,2930.1,0.001]
[1764170567890,4.90782411,2930.2,2930.1,0.001]
[1764170568093,13.28856411,2930.2,2930.1,0.001]
[1764170568418,23.9100345,2930.2,2930.1,0.001]
[1764170568618,23.9100345,2930.2,2929.8,0.001]
[1764170568619,14.65623011,2930.1,2929.8,0.001]
[1764170568827,9.51085011,2930.1,2929.8,0.001]
[1764170569192,12.70519411,2930.1,2929.8,0.001]
[1764170569426,16.11804691,2930.1,2929.8,0.001]
[1764170569606,14.87762911,2929.9,2929.8,0.001]
[1764170569913,10.27701031,2929.9,2929.8,0.001]
[1764170570141,13.88208531,2929.9,2929.8,0.001]
[1764170570314,13.15405411,2929.9,2929.8,0.001]
[1764170570626,13.8817317,2929.9,2929.8,0.001]
[1764170570928,15.91464291,2929.9,2929.8,0.001]
[1764170571107,24.70493924,2929.9,2929.8,0.001]
[1764170571304,25.96840201,2929.9,2929.8,0.001]
[1764170571524,6.43247524,2929.9,2929.8,0.001]
[1764170571729,7.81266888,2929.9,2929.8,0.001]
[1764170572107,15.62015788,2929.9,2929.8,0.001]
[1764170572308,12.68247088,2929.9,2929.8,0.001]
[1764170572808,13.11427088,2929.9,2929.8,0.001]
[1764170573039,11.48727088,2929.9,2929.8,0.001]
[1764170573333,10.08252496,2929.9,2929.8,0.001]
[1764170573529,6.66943919,2929.9,2929.8,0.001]
[1764170573693,10.08252496,2929.9,2929.8,0.001]
[1764170574234,11.15100896,2929.9,2929.8,0.001]
[1764170574396,11.46654003,2929.9,2929.8,0.001]
[1764170575110,8.05345426,2929.9,2929.8,0.001]
[1764170575322,9.80703395,2929.9,2929.8,0.001]
[1764170575533,9.90642221,2929.9,2929.8,0.001]
[1764170576032,9.90642221,2929.9,2929.6,0.001]
[1764170576033,27.80645511,2929.7,2929.6,0.001]
[1764170576207,37.71628842,2929.7,2929.6,0.001]
[1764170576407,35.26735642,2929.7,2929.6,0.001]
[1764170576650,37.15449197,2929.7,2929.6,0.001]
[1764170576999,19.50488697,2929.7,2929.6,0.001]
[1764170577204,8.05272717,2929.7,2929.6,0.001]
[1764170577403,8.11635494,2929.7,2929.6,0.001]
[1764170577911,17.38696892,2929.7,2929.6,0.001]
[1764170578207,36.22231292,2929.7,2929.6,0.001]
[1764170578545,32.25883792,2929.7,2929.6,0.001]
[1764170579340,33.81326792,2929.7,2929.6,0.001]
[1764170579544,37.16295891,2929.7,2929.6,0.001]
[1764170580106,37.56846291,2929.7,2929.6,0.001]
[1764170580311,37.48515899,2929.7,2929.6,0.001]
[1764170580642,37.48515899,2929.7,2928.6,0.001]
[1764170580643,16.624896,2928.7,2928.6,0.001]
[1764170580947,16.624896,2928.7,2928.4,0.001]
[1764170580948,28.35570426,2928.5,2928.4,0.001]
[1764170581145,20.976474,2928.3,2927.0,3.41637816]
[1764170581345,4.89368018,2928.2,2927.2,3.41616506]
[1764170581649,0.22,2928.2,2927.4,0.4772]
[1764170581834,7.457936,2928.2,2927.4,0.4772]
[1764170582037,1.97583448,2928.2,2927.4,0.4772]
[1764170582343,1.97583448,2928.2,2927.1,10.24903968]
[1764170582344,0.22,2928.9,2928.1,1.1339]
[1764170582740,0.4914,2929.3,2928.2,0.4772]
[1764170582939,0.4914,2929.7,2928.2,0.4772]
[1764170583145,4.775009,2929.4,2928.2,0.4772]
[1764170583317,0.22,2929.6,2928.3,0.405504]
[1764170583647,0.22,2929.6,2928.5,0.405504]
[1764170583845,0.4772,2930.3,2929.5,0.5938]
[1764170584351,0.22,2930.5,2929.6,0.4772]
[1764170585538,0.22,2930.5,2929.7,6.82663752]
[1764170586028,0.22,2930.5,2929.7,7.32603752]
[1764170586311,0.22,2930.5,2929.7,6.82663752]
[1764170586526,0.22,2930.5,2929.8,0.4994]
[1764170587448,0.22,2930.5,2929.9,3.41308577]
[1764170587654,0.22,2930.5,2929.9,6.82617154]
[1764170587823,0.002,2930.6,2930.4,0.654]
[1764170588011,0.002,2930.6,2930.5,0.9624]
[1764170589171,0.002,2930.6,2930.1,0.4994]
[1764170589361,0.002,2930.6,2930.5,0.463]
[1764170589540,0.002,2930.6,2930.5,3.87538696]
[1764170589743,0.002,2930.6,2930.5,4.37478696]
[1764170589938,0.002,2930.6,2930.5,4.78029096]
[1764170591048,0.0012,2930.6,2930.5,4.37478696]
[1764170593575,0.0012,2930.6,2930.5,4.78029096]
[1764170594787,0.002,2930.9,2930.8,0.50456306]
[1764170594987,0.002,2930.9,2930.8,1.66086306]
[1764170595194,0.002,2931.2,2931.1,0.50456306]
[1764170595359,0.002,2931.2,2931.1,0.95856306]
[1764170595556,0.002,2931.6,2931.2,0.405504]
[1764170595755,0.002,2931.9,2931.6,0.405504]
[1764170596062,0.002,2931.9,2931.8,0.454]
[1764170596475,0.002,2931.9,2931.5,0.4823]
[1764170596675,0.002,2931.9,2931.2,0.887804]
[1764170596876,0.002,2931.9,2931.3,0.4823]
[1764170597277,0.002,2931.9,2931.2,0.4823]
[1764170597477,0.002,2931.9,2931.3,6.82291132]
[1764170597706,0.2011,2931.9,2931.3,6.82291132]
[1764170598201,0.002,2931.9,2931.3,3.41145566]
[1764170598372,0.002,2931.9,2931.3,6.82291132]
[1764170598573,0.43572546,2931.9,2931.3,6.82291132]
[1764170598904,0.43572546,2931.9,2931.3,10.71666698]
[1764170599208,0.002,2931.9,2931.3,10.71666698]
[1764170599383,0.72559411,2931.7,2930.8,7.30634422]
[1764170599587,0.72559411,2931.8,2930.8,7.30634422]
[1764170599785,4.12107189,2931.9,2930.8,7.30634422]
[1764170599786,0.222,2931.9,2930.9,0.4823]
[1764170599986,0.72559411,2931.8,2930.9,0.4823]
[1764170600227,0.82573815,2931.8,2930.9,0.4823]
[1764170600399,1.21379411,2931.8,2930.9,0.4823]
[1764170600918,0.3114,2931.0,2930.3,6.82523972]
[1764170601082,0.0031,2930.9,2930.3,6.82523972]
[1764170601273,0.1299,2930.9,2930.3,6.82523972]
[1764170601506,0.1299,2930.9,2930.3,3.41261986]
[1764170602006,0.1299,2930.9,2930.3,6.82523972]
[1764170602322,0.22,2931.2,2930.8,0.454]
[1764170602925,0.4882,2931.1,2930.3,6.82523972]
[1764170603106,0.22,2931.2,2930.3,6.82523972]
[1764170603401,0.94559411,2931.2,2930.3,6.82523972]
[1764170603606,4.84540335,2931.2,2930.3,3.41261986]
[1764170603822,0.48454034,2931.1,2930.3,6.82523972]
[1764170604046,3.20159411,2931.1,2930.3,10.23785958]
[1764170604349,0.72559411,2931.1,2930.3,10.23785958]
[1764170604551,0.002,2931.9,2931.0,0.454]
[1764170604836,0.72559411,2931.6,2930.4,0.4823]
[1764170605003,3.687199,2931.6,2930.4,0.4823]
[1764170605198,0.44127931,2931.5,2930.4,0.7023]
[1764170605401,2.113177,2931.6,2930.5,0.405504]
[1764170605646,2.079,2931.6,2930.6,6.82454104]
[1764170605846,0.72559411,2931.6,2930.7,0.4823]
[1764170606248,2.428906,2931.5,2930.7,0.4823]
[1764170606538,0.72559411,2931.4,2930.7,0.4823]
[1764170607637,6.32,2931.5,2930.7,0.4823]
[1764170607638,6.32,2931.5,2931.4,3.41133929]
[1764170607803,0.72559411,2931.7,2931.4,3.41133929]
[1764170608005,1.21379411,2931.7,2930.8,0.22]
[1764170608206,0.72559411,2931.7,2930.9,6.82380186]
[1764170608426,0.72559411,2931.7,2931.0,0.4823]
[1764170609235,0.4882,2931.6,2930.9,6.82380186]
[1764170609440,0.3705,2931.0,2929.2,3.41378931]
[1764170609762,20.378141,2930.0,2928.7,3.41448424]
[1764170610046,0.72559411,2929.5,2928.7,3.41448424]
[1764170610217,0.72559411,2929.5,2928.4,0.4833]
[1764170610218,0.1739,2928.8,2928.4,3.41582844]
[1764170610612,0.1739,2928.8,2928.4,0.001]
[1764170610849,0.1739,2928.8,2928.4,3.41581669]
[1764170611714,0.1739,2928.8,2928.4,0.001]
[1764170611936,0.6621,2928.8,2928.4,0.001]
[1764170612143,3.066218,2928.7,2928.4,0.001]
[1764170612454,0.4882,2928.6,2928.4,0.001]
[1764170612747,0.22,2928.5,2928.4,0.001]
[1764170612910,0.6754,2928.5,2928.4,0.001]
[1764170613105,1.1632,2928.5,2928.4,0.001]
[1764170613745,5.29883,2928.5,2928.4,0.001]
[1764170613911,4.79294241,2928.5,2928.4,0.001]
[1764170614118,5.51853652,2928.5,2928.4,0.001]
[1764170614741,12.43733152,2928.5,2928.4,0.001]
[1764170614936,11.45277152,2928.5,2928.4,0.001]
[1764170615150,9.78473652,2928.5,2928.4,0.001]
[1764170615445,6.32809252,2928.5,2928.4,0.001]
[1764170615757,5.42043652,2928.5,2928.4,0.001]
[1764170616260,5.51295352,2928.5,2928.4,0.001]
[1764170616750,5.69935952,2928.5,2928.4,0.001]
[1764170617137,4.69935952,2928.5,2928.4,0.001]
[1764170617516,3.11845511,2928.5,2928.4,0.001]
[1764170618019,3.59495511,2928.5,2928.4,0.001]
[1764170618217,4.02955711,2928.5,2928.4,0.001]
[1764170618744,0.94479411,2928.5,2928.4,0.001]
[1764170618947,1.88819411,2928.5,2928.4,0.001]
[1764170619154,1.13109811,2928.4,2928.1,0.001]
[1764170619356,27.35485898,2928.2,2928.1,0.001]
[1764170619525,14.099247,2928.0,2927.8,0.001]
[1764170619725,19.1322433,2927.9,2927.8,0.001]
[1764170619953,18.4216183,2927.9,2927.8,0.001]
[1764170620155,7.66634655,2927.9,2927.8,0.001]
[1764170620462,6.11074011,2927.9,2927.8,0.001]
[1764170620636,4.82374011,2927.9,2927.8,0.001]
[1764170620839,4.50573911,2927.9,2927.8,0.001]
[1764170621048,2.08269411,2927.9,2927.8,0.001]
[1764170621247,5.67103911,2927.9,2927.8,0.001]
[1764170621449,4.72540102,2927.9,2927.8,0.001]
[1764170621758,5.98883802,2927.9,2927.8,0.001]
[1764170621959,6.47703802,2927.9,2927.8,0.001]
[1764170622258,5.03260402,2927.9,2927.8,0.001]
[1764170622560,8.44802121,2927.9,2927.8,0.001]
[1764170622861,6.20876602,2927.9,2927.8,0.001]
[1764170623063,4.18895302,2927.9,2927.8,0.001]
[1764170623237,4.67715302,2927.9,2927.8,0.001]
[1764170623967,5.21434902,2927.9,2927.8,0.001]
[1764170624260,11.53434902,2927.9,2927.8,0.001]
[1764170624867,12.54854602,2927.9,2927.8,0.001]
[1764170625379,16.46885547,2927.9,2927.8,0.001]
[1764170625873,16.46885547,2927.9,2926.9,0.001]
[1764170625874,0.72559411,2927.2,2926.9,0.001]
[1764170626036,28.19327809,2927.0,2926.9,0.001]
[1764170626229,25.98355609,2927.0,2926.9,0.001]
[1764170626469,4.95900011,2927.0,2926.9,0.001]
[1764170626968,16.75918411,2927.0,2926.9,0.001]
[1764170627167,19.34693161,2927.0,2926.9,0.001]
[1764170627559,3.54244161,2927.0,2926.9,0.001]
[1764170627768,3.82605111,2927.0,2926.9,0.001]
[1764170628066,12.25550248,2927.0,2926.9,0.001]
[1764170628577,8.116073,2927.6,2926.9,0.4911]
[1764170628867,0.22,2927.5,2927.0,0.4901]
[1764170629072,3.184332,2927.4,2927.0,0.4901]
[1764170629570,0.22,2927.3,2927.1,0.1937]
[1764170629972,0.22,2927.3,2927.2,4.39433394]
[1764170630316,0.22,2927.4,2927.2,7.81056788]
[1764170630440,0.22,2927.4,2927.2,7.32256788]
[1764170630779,0.22,2927.4,2927.2,0.488]
[1764170631151,0.22,2927.7,2927.3,0.4901]
[1764170632074,0.6875,2927.7,2926.9,0.001]
[1764170632376,0.22,2927.7,2927.0,6.83293474]
[1764170632983,4.814975,2927.6,2927.0,6.83293474]
[1764170633191,2.369637,2927.6,2927.0,7.32093474]
[1764170633342,2.369637,2927.6,2927.0,3.41646737]
[1764170633548,2.369637,2927.6,2927.0,6.83293474]
[1764170633754,28.17030088,2927.5,2926.9,0.001]
[1764170633944,12.749497,2927.3,2926.9,0.001]
[1764170634154,0.22,2927.2,2926.9,0.001]
[1764170634686,0.4835,2927.0,2926.9,0.001]
[1764170635182,20.317799,2927.0,2926.9,0.001]
[1764170636052,16.291139,2927.0,2926.9,0.001]
[1764170636250,17.9422529,2927.0,2926.9,0.001]
[1764170636453,13.06417538,2927.0,2926.9,0.001]
[1764170636653,27.71526874,2927.0,2926.9,0.001]
[1764170637099,22.77345437,2927.0,2926.9,0.001]
[1764170637278,12.33877137,2927.0,2926.9,0.001]
[1764170637585,26.39146574,2927.0,2926.9,0.001]
[1764170637754,17.04153137,2927.0,2926.9,0.001]
[1764170638192,11.02067726,2927.0,2926.9,0.001]
[1764170638371,9.58614236,2927.0,2926.9,0.001]
[1764170638689,9.08014236,2927.0,2926.9,0.001]
[1764170638894,6.85414236,2927.0,2926.9,0.001]
[1764170639573,7.58281139,2927.0,2926.9,0.001]
[1764170639899,6.185739,2926.9,2926.6,0.001]
[1764170640196,2.46801643,2926.8,2926.6,0.001]
[1764170640392,0.31334236,2926.7,2926.6,0.4911]
[1764170640593,0.53334236,2926.7,2926.6,0.001]
[1764170640795,0.31334236,2926.7,2926.6,0.4911]
[1764170640995,6.32,2927.0,2926.6,0.4911]
[1764170641160,6.32,2927.0,2926.9,0.4901]
[1764170641627,6.32,2927.0,2926.9,0.9781]
[1764170641781,0.22,2927.3,2926.9,0.9781]
[1764170641971,0.72955637,2927.5,2927.4,0.4901]
[1764170642265,0.22,2927.5,2926.7,10.73845271]
[1764170642460,0.22,2927.5,2926.6,0.001]